{"text_format":"1","workbook":"xlsx","n_sheets":1,"sheets":["ورقة1"],"not_rendered":{"charts":0,"images":0,"macros":0,"external_links":0,"defined_names":0,"comments":0,"pivot_tables":0},"unopened":[],"bounds":{"document_bytes":16777216,"sheet_cells":100000,"rows_first":2000,"rows_last":500,"rows_between":2000,"halvings":0,"cell_chars":16384,"cell_head_chars":4096},"cells_cut":0,"cells_raw":0,"read":"whole","date_system":"1900"}

{"sheet":"ورقة1","index":0,"n_rows":16,"n_cols":12,"rows_kept":16,"cut":false,"hidden":false,"merged":[[15,3,25,10]]}
["الرقم الآلي","عدد الإجراءات","الإجراءات","محضر استلام","اعلان تنفيذي","امر منع سفر","امر رفع منع سفر","امر ضبط واحضار مدين","رفع امر ضبط واحضار مدين","تجديد امر ضبط واحضار مدين","طلب حجز و ضبط سيارة","طلب ضبط سيارة"]
["192160470",2,"ايصال تحصيل - محضر استلام سجلت القضية في دائرة  أمر اداء جزئي في  المحكمة الكلية برقم  536409 سنة  2019",{"$f":"IF(ISNUMBER(SEARCH(TRIM(D$1),TRIM($C2))),D$1,\"\")","v":"محضر استلام"},{"$f":"IF(ISNUMBER(SEARCH(TRIM(E$1),TRIM($C2))),E$1,\"\")","v":""},"","","","","","",""]
["160349042","10","محضر استلام",{"$f":"IF(ISNUMBER(SEARCH(TRIM(D$1),TRIM($C3))),D$1,\"\")","v":"محضر استلام"},"","","","","","","",""]
["160349040","12","ايصال تحصيل - سجلت القضية في دائرة  أمر اداء جزئي في  المحكمة الكلية برقم  507376 سنة  2016 - اعلان تنفيذي - محضراثبات حاله - طلب حجز و ضبط سيارة - طلب منع سفر - طلب حجزما للمدين لدى الغير - طلب حجز و ضبط سيارة - طـلب ضبط واحضار مدين - امر ضبط واحضار مدين - امر منع سفر - محضر عرض مدين - رفع امر ضبط واحضار مدين - تجديد امر ضبط واحضار مدين - امر ضبط واحضار مدين","","اعلان تنفيذي","امر منع سفر","","امر ضبط واحضار مدين","رفع امر ضبط واحضار مدين","تجديد امر ضبط واحضار مدين","طلب حجز و ضبط سيارة",""]
["160349041","3","ايصال تحصيل - سجلت القضية في دائرة  أمر اداء جزئي في  المحكمة الكلية برقم  507376 سنة  2016 - اعلان تنفيذي","","اعلان تنفيذي","","","","","","",""]
["160349042","10","ايصال تحصيل - سجلت القضية في دائرة  أمر اداء جزئي في  المحكمة الكلية برقم  507376 سنة  2016 - اعلان تنفيذي - محضراثبات حاله - طلب حجز و ضبط سيارة - طلب منع سفر - طلب حجزما للمدين لدى الغير - طلب حجز و ضبط سيارة - طـلب ضبط واحضار مدين - امر ضبط واحضار مدين - امر منع سفر","","اعلان تنفيذي","امر منع سفر","","امر ضبط واحضار مدين","","","طلب حجز و ضبط سيارة",""]
["160349043","9","ايصال تحصيل - سجلت القضية في دائرة  أمر اداء جزئي في  المحكمة الكلية برقم  507376 سنة  2016 - اعلان تنفيذي - محضراثبات حاله - طلب حجز و ضبط سيارة - طلب منع سفر - طلب حجزما للمدين لدى الغير - طلب حجز و ضبط سيارة - طـلب ضبط واحضار مدين - امر ضبط واحضار مدين","","اعلان تنفيذي","","","امر ضبط واحضار مدين","","","طلب حجز و ضبط سيارة",""]
["160349044","11","ايصال تحصيل - سجلت القضية في دائرة  أمر اداء جزئي في  المحكمة الكلية برقم  507376 سنة  2016 - محضر استلام - طلب حجز و ضبط سيارة - طلب منع سفر - طلب حجزما للمدين لدى الغير - طلب حجز و ضبط سيارة - طـلب ضبط واحضار مدين - امر ضبط واحضار مدين - امر منع سفر - محضر عرض مدين - رفع امر ضبط واحضار مدين - طلب ضبط سيارة",null,""]
[]
[]
[]
[]
[]
[]
[]
[null,null,null,"ارغب بعمل كود للفرز عند تحديد العمود C والضغط على الكود يتم فرز محتويات الخلية في العمود حسب الاعمدة D-E-F-G-H-I-J-K- بحيث ان العمود C لو في محضر استلام يتم كتابه محضر استلام في العمود D ولو غير موجود تترك الخليه فاضيه وكذلك مثلا لوفي العمود سي امر منع سفر يكتب في العمود اف امر منع سفر ولو غير موجود تظل الخليه فارغه وهكذا كما هو مبين في المثال الصفوف الثاني والثالث\nوجزاك الله خيرا"]